[Event "Titled Tuesday Blitz January 03 Early 2023"]
[White "Sourath Biswas"]
[Black "Vysochin, Spartak"]
[WhiteFideId "35091484"]
[BlackFideId "14103516"]
[WhiteElo "2281"]
[BlackElo "2512"]
[Result "1-0"]
[Round "07"]
[TimeControl "180+2"]
[Date "2023.01.03"]
[WhiteClock "0:01:21"]
[BlackClock "0:01:48"]

1. d4 {[%clk 0:03:00]}  d5 {[%clk 0:02:49]} 2. Bf4 {[%clk 0:03:01]}  c5 {[%clk 0:02:48]} 3. e3 {[%clk 0:03:01]}  Nc6 {[%clk 0:02:47]} 4. Nf3 {[%clk 0:03:00]}  Nf6 {[%clk 0:02:47]} 5. Nbd2 {[%clk 0:03:00]}  Bg4 {[%clk 0:02:47]} 6. c3 {[%clk 0:02:58]}  e6 {[%clk 0:02:47]} 7. Qb3 {[%clk 0:02:56]}  Qb6 {[%clk 0:02:45]} 8. Qxb6 {[%clk 0:02:55]}  axb6 {[%clk 0:02:44]} 9. Bb5 {[%clk 0:02:56]}  Nd7 {[%clk 0:02:43]} 10. Ne5 {[%clk 0:02:51]}  Ndxe5 {[%clk 0:02:42]} 11. Bxe5 {[%clk 0:02:52]}  Kd7 {[%clk 0:02:41]} 12. h3 {[%clk 0:02:45]}  Bh5 {[%clk 0:02:38]} 13. f3 {[%clk 0:02:28]}  f6 {[%clk 0:02:38]} 14. Bh2 {[%clk 0:02:22]}  Bd6 {[%clk 0:02:37]} 15. Bxd6 {[%clk 0:02:20]}  Kxd6 {[%clk 0:02:36]} 16. Kf2 {[%clk 0:02:20]}  Ra5 {[%clk 0:02:33]} 17. a4 {[%clk 0:01:42]}  Rha8 {[%clk 0:02:30]} 18. Rhd1 {[%clk 0:01:31]}  Bg6 {[%clk 0:02:26]} 19. dxc5+ {[%clk 0:01:28]}  bxc5 {[%clk 0:02:22]} 20. Nc4+ {[%clk 0:01:28]}  Kc7 {[%clk 0:02:23]} 21. Nxa5 {[%clk 0:01:27]}  Nxa5 {[%clk 0:02:21]} 22. b4 {[%clk 0:01:27]}  Nb3 {[%clk 0:02:21]} 23. Ra2 {[%clk 0:01:27]}  c4 {[%clk 0:02:19]} 24. e4 {[%clk 0:01:27]}  Rd8 {[%clk 0:02:05]} 25. exd5 {[%clk 0:01:22]}  exd5 {[%clk 0:02:05]} 26. Re2 {[%clk 0:01:22]}  Kb6 {[%clk 0:01:48]} 27. Bxc4 {[%clk 0:01:21]} 1-0


[Site "https://www.chess.com"]

[Event "Titled Tuesday Blitz January 03 Early 2023"]
[White "reevecanada"]
[Black "Karttunen, Mika"]
[BlackFideId "502081"]
[WhiteElo "2477"]
[BlackElo "2490"]
[Result "1-0"]
[Round "07"]
[TimeControl "180+2"]
[Date "2023.01.03"]
[WhiteClock "0:00:20"]
[BlackClock "0:00:11"]

1. e4 {[%clk 0:02:56]}  e5 {[%clk 0:02:57]} 2. Nf3 {[%clk 0:02:55]}  Nc6 {[%clk 0:02:57]} 3. d4 {[%clk 0:02:53]}  exd4 {[%clk 0:02:57]} 4. Nxd4 {[%clk 0:02:53]}  Nf6 {[%clk 0:02:56]} 5. Nxc6 {[%clk 0:02:53]}  bxc6 {[%clk 0:02:56]} 6. Bd3 {[%clk 0:02:53]}  d5 {[%clk 0:02:49]} 7. e5 {[%clk 0:02:51]}  Ng4 {[%clk 0:02:40]} 8. O-O {[%clk 0:02:49]}  Bc5 {[%clk 0:02:18]} 9. Qe2 {[%clk 0:02:48]}  Qh4 {[%clk 0:01:57]} 10. h3 {[%clk 0:02:46]}  h5 {[%clk 0:01:56]} 11. Nd2 {[%clk 0:02:43]}  Be6 {[%clk 0:01:20]} 12. Nf3 {[%clk 0:02:39]}  Qg3 {[%clk 0:01:20]} 13. Bg5 {[%clk 0:01:55]}  Nxf2 {[%clk 0:01:04]} 14. Rxf2 {[%clk 0:01:52]}  Bxh3 {[%clk 0:01:05]} 15. Be3 {[%clk 0:01:50]}  Be7 {[%clk 0:00:49]} 16. Nh2 {[%clk 0:01:30]}  Bg4 {[%clk 0:00:49]} 17. Bf4 {[%clk 0:01:23]}  Qh4 {[%clk 0:00:38]} 18. Qe1 {[%clk 0:01:20]}  g5 {[%clk 0:00:34]} 19. g3 {[%clk 0:01:19]}  Qh3 {[%clk 0:00:28]} 20. Bf1 {[%clk 0:01:18]}  gxf4 {[%clk 0:00:26]} 21. Bxh3 {[%clk 0:01:18]}  fxg3 {[%clk 0:00:27]} 22. Rg2 {[%clk 0:01:17]}  Bxh3 {[%clk 0:00:21]} 23. Rxg3 {[%clk 0:01:13]}  Be6 {[%clk 0:00:21]} 24. Kh1 {[%clk 0:01:09]}  h4 {[%clk 0:00:21]} 25. Rg1 {[%clk 0:01:08]}  d4 {[%clk 0:00:21]} 26. Nf3 {[%clk 0:01:08]}  Bd5 {[%clk 0:00:21]} 27. Qf2 {[%clk 0:01:07]}  c5 {[%clk 0:00:20]} 28. Kh2 {[%clk 0:01:06]}  O-O-O {[%clk 0:00:20]} 29. c3 {[%clk 0:01:06]}  f6 {[%clk 0:00:20]} 30. cxd4 {[%clk 0:01:05]}  fxe5 {[%clk 0:00:20]} 31. dxe5 {[%clk 0:01:04]}  Rdf8 {[%clk 0:00:20]} 32. Qd2 {[%clk 0:00:58]}  Bxf3 {[%clk 0:00:20]} 33. Raf1 {[%clk 0:00:57]}  Bc6 {[%clk 0:00:18]} 34. e6 {[%clk 0:00:55]}  Rd8 {[%clk 0:00:18]} 35. Qe2 {[%clk 0:00:53]}  Bd5 {[%clk 0:00:16]} 36. Rd1 {[%clk 0:00:45]}  h3 {[%clk 0:00:16]} 37. Qa6+ {[%clk 0:00:35]}  Bb7 {[%clk 0:00:15]} 38. Rxd8+ {[%clk 0:00:28]}  Rxd8 {[%clk 0:00:14]} 39. Qe2 {[%clk 0:00:27]}  Rh8 {[%clk 0:00:14]} 40. Rd1 {[%clk 0:00:23]}  Bd6+ {[%clk 0:00:11]} 41. Rxd6 {[%clk 0:00:22]}  cxd6 {[%clk 0:00:12]} 42. Qg4 {[%clk 0:00:22]}  Kd8 {[%clk 0:00:11]} 43. Qg7 {[%clk 0:00:20]} 1-0


[Site "https://www.chess.com"]

[Event "Titled Tuesday Blitz January 03 Early 2023"]
[White "Maltsevskaya, Aleksandra"]
[Black "Krienke, Makaio"]
[WhiteFideId "24174041"]
[BlackFideId "2038854"]
[WhiteElo "2390"]
[BlackElo "2115"]
[Result "1/2-1/2"]
[Round "07"]
[TimeControl "180+2"]
[Date "2023.01.03"]
[WhiteClock "0:00:05"]
[BlackClock "0:00:11"]

1. Nf3 {[%clk 0:02:43]}  Nf6 {[%clk 0:02:59]} 2. g3 {[%clk 0:02:44]}  g6 {[%clk 0:03:00]} 3. d3 {[%clk 0:02:45]}  Bg7 {[%clk 0:03:00]} 4. Nbd2 {[%clk 0:02:46]}  d5 {[%clk 0:03:00]} 5. Bg2 {[%clk 0:02:47]}  O-O {[%clk 0:02:59]} 6. O-O {[%clk 0:02:48]}  Bf5 {[%clk 0:02:58]} 7. e4 {[%clk 0:02:48]}  dxe4 {[%clk 0:02:58]} 8. dxe4 {[%clk 0:02:49]}  Nxe4 {[%clk 0:02:57]} 9. Nh4 {[%clk 0:02:47]}  Nxd2 {[%clk 0:02:46]} 10. Bxd2 {[%clk 0:02:46]}  Bc8 {[%clk 0:02:43]} 11. Qe2 {[%clk 0:02:36]}  Nc6 {[%clk 0:02:39]} 12. Rfd1 {[%clk 0:02:36]}  Nd4 {[%clk 0:02:34]} 13. Qd3 {[%clk 0:02:35]}  Nf5 {[%clk 0:02:25]} 14. Qe4 {[%clk 0:02:30]}  Nxh4 {[%clk 0:02:20]} 15. Qxh4 {[%clk 0:02:31]}  Qe8 {[%clk 0:02:07]} 16. Bh6 {[%clk 0:02:04]}  Bxh6 {[%clk 0:01:47]} 17. Qxh6 {[%clk 0:02:05]}  Qb5 {[%clk 0:01:42]} 18. Re1 {[%clk 0:01:55]}  Be6 {[%clk 0:01:40]} 19. b3 {[%clk 0:01:37]}  Rad8 {[%clk 0:01:37]} 20. c4 {[%clk 0:01:36]}  Qb4 {[%clk 0:01:33]} 21. Rad1 {[%clk 0:01:32]}  c6 {[%clk 0:01:31]} 22. h4 {[%clk 0:01:15]}  a5 {[%clk 0:01:31]} 23. h5 {[%clk 0:01:13]}  Bg4 {[%clk 0:01:17]} 24. hxg6 {[%clk 0:01:11]}  fxg6 {[%clk 0:01:13]} 25. f3 {[%clk 0:01:01]}  Bf5 {[%clk 0:01:03]} 26. Qe3 {[%clk 0:00:46]}  a4 {[%clk 0:00:29]} 27. g4 {[%clk 0:00:36]}  Bc2 {[%clk 0:00:26]} 28. Qe6+ {[%clk 0:00:35]}  Kh8 {[%clk 0:00:25]} 29. Qe5+ {[%clk 0:00:35]}  Kg8 {[%clk 0:00:25]} 30. Rxd8 {[%clk 0:00:18]}  Rxd8 {[%clk 0:00:25]} 31. Qe6+ {[%clk 0:00:08]}  Kf8 {[%clk 0:00:22]} 32. Qe5 {[%clk 0:00:08]}  Kg8 {[%clk 0:00:18]} 33. Qe6+ {[%clk 0:00:08]}  Kf8 {[%clk 0:00:17]} 34. Qe5 {[%clk 0:00:05]}  Kg8 {[%clk 0:00:11]} 1/2-1/2


[Site "https://www.chess.com"]

[Event "Titled Tuesday Blitz January 03 Early 2023"]
[White "Goncalves, Davi Sulzbacher"]
[Black "Odegov, Artem"]
[WhiteFideId "2154510"]
[BlackFideId "34183644"]
[WhiteElo "2282"]
[BlackElo "2261"]
[Result "1-0"]
[Round "07"]
[TimeControl "180+2"]
[Date "2023.01.03"]
[WhiteClock "0:01:05"]
[BlackClock "0:01:10"]

1. Nf3 {[%clk 0:02:58]}  d5 {[%clk 0:02:49]} 2. d4 {[%clk 0:02:57]}  e6 {[%clk 0:02:48]} 3. Bg5 {[%clk 0:02:57]}  c5 {[%clk 0:02:49]} 4. Bxd8 {[%clk 0:02:49]}  Kxd8 {[%clk 0:02:50]} 5. e3 {[%clk 0:02:48]}  Nf6 {[%clk 0:02:50]} 6. c4 {[%clk 0:02:46]}  Nc6 {[%clk 0:02:47]} 7. Nc3 {[%clk 0:02:45]}  Be7 {[%clk 0:02:45]} 8. dxc5 {[%clk 0:02:43]}  Kc7 {[%clk 0:02:43]} 9. cxd5 {[%clk 0:02:40]}  exd5 {[%clk 0:02:43]} 10. Nb5+ {[%clk 0:02:20]}  Kb8 {[%clk 0:02:42]} 11. Rc1 {[%clk 0:02:19]}  Be6 {[%clk 0:02:35]} 12. a3 {[%clk 0:02:10]}  a5 {[%clk 0:02:34]} 13. Be2 {[%clk 0:02:08]}  Ne4 {[%clk 0:02:32]} 14. O-O {[%clk 0:02:06]}  Bxc5 {[%clk 0:02:32]} 15. Nfd4 {[%clk 0:02:00]}  Rc8 {[%clk 0:02:29]} 16. Nxe6 {[%clk 0:01:57]}  fxe6 {[%clk 0:02:30]} 17. Bd3 {[%clk 0:01:56]}  b6 {[%clk 0:01:48]} 18. Bxe4 {[%clk 0:01:53]}  dxe4 {[%clk 0:01:49]} 19. Qg4 {[%clk 0:01:53]}  Na7 {[%clk 0:01:45]} 20. Nd4 {[%clk 0:01:48]}  e5 {[%clk 0:01:43]} 21. Ne6 {[%clk 0:01:43]}  g6 {[%clk 0:01:44]} 22. Qxe4 {[%clk 0:01:41]}  Bd6 {[%clk 0:01:42]} 23. Qd5 {[%clk 0:01:36]}  Be7 {[%clk 0:01:22]} 24. Qd7 {[%clk 0:01:29]}  Bc5 {[%clk 0:01:15]} 25. Rc2 {[%clk 0:01:16]}  Nc6 {[%clk 0:01:09]} 26. Nxc5 {[%clk 0:01:10]}  bxc5 {[%clk 0:01:10]} 27. Rxc5 {[%clk 0:01:08]}  Ra7 {[%clk 0:01:10]} 28. Rb5+ {[%clk 0:01:06]}  Ka8 {[%clk 0:01:09]} 29. Qxc8+ {[%clk 0:01:06]}  Nb8 {[%clk 0:01:10]} 30. Rxb8# {[%clk 0:01:05]} 1-0


[Site "https://www.chess.com"]

[Event "Titled Tuesday Blitz January 03 Early 2023"]
[White "Najdin, Danil"]
[Black "Freitag, Manfred"]
[WhiteFideId "4172426"]
[BlackFideId "1602004"]
[WhiteElo "2235"]
[BlackElo "2352"]
[Result "0-1"]
[Round "07"]
[TimeControl "180+2"]
[Date "2023.01.03"]
[WhiteClock "0:00:24"]
[BlackClock "0:01:01"]

1. e4 {[%clk 0:03:00]}  Nf6 {[%clk 0:02:41]} 2. e5 {[%clk 0:02:54]}  Nd5 {[%clk 0:02:41]} 3. d4 {[%clk 0:02:54]}  Nb6 {[%clk 0:02:41]} 4. c4 {[%clk 0:02:53]}  d6 {[%clk 0:02:41]} 5. f4 {[%clk 0:02:53]}  dxe5 {[%clk 0:02:39]} 6. fxe5 {[%clk 0:02:53]}  Bf5 {[%clk 0:02:39]} 7. Nc3 {[%clk 0:02:48]}  e6 {[%clk 0:02:39]} 8. Nf3 {[%clk 0:02:45]}  Nc6 {[%clk 0:02:40]} 9. Be2 {[%clk 0:02:45]}  Be7 {[%clk 0:02:40]} 10. O-O {[%clk 0:02:45]}  O-O {[%clk 0:02:40]} 11. Be3 {[%clk 0:02:45]}  f6 {[%clk 0:02:41]} 12. exf6 {[%clk 0:02:45]}  Bxf6 {[%clk 0:02:41]} 13. Qd2 {[%clk 0:02:35]}  Qe7 {[%clk 0:02:41]} 14. Rad1 {[%clk 0:02:30]}  Rad8 {[%clk 0:02:41]} 15. b3 {[%clk 0:02:14]}  h6 {[%clk 0:02:41]} 16. Qe1 {[%clk 0:02:04]}  Kh8 {[%clk 0:02:40]} 17. Qg3 {[%clk 0:02:01]}  Nb4 {[%clk 0:02:27]} 18. Ne5 {[%clk 0:01:55]}  Nc2 {[%clk 0:02:04]} 19. Rxf5 {[%clk 0:01:44]}  Bxe5 {[%clk 0:02:04]} 20. Rxf8+ {[%clk 0:01:29]}  Rxf8 {[%clk 0:02:03]} 21. Qxe5 {[%clk 0:01:22]}  Rf5 {[%clk 0:01:49]} 22. Qg3 {[%clk 0:01:21]}  Qb4 {[%clk 0:01:50]} 23. Ne4 {[%clk 0:01:13]}  Qa5 {[%clk 0:01:41]} 24. Bd3 {[%clk 0:01:08]}  Nxe3 {[%clk 0:01:36]} 25. Qxe3 {[%clk 0:01:08]}  Qa3 {[%clk 0:01:36]} 26. Ng3 {[%clk 0:01:04]}  Rf6 {[%clk 0:01:35]} 27. Nh5 {[%clk 0:01:00]}  Rf8 {[%clk 0:01:31]} 28. Qe4 {[%clk 0:00:59]}  Kg8 {[%clk 0:01:26]} 29. Qh7+ {[%clk 0:00:55]}  Kf7 {[%clk 0:01:27]} 30. Bg6+ {[%clk 0:00:55]}  Ke7 {[%clk 0:01:24]} 31. Qxg7+ {[%clk 0:00:54]}  Kd8 {[%clk 0:01:24]} 32. c5 {[%clk 0:00:51]}  Nd7 {[%clk 0:01:19]} 33. Qxh6 {[%clk 0:00:39]}  Qb2 {[%clk 0:01:16]} 34. Qg5+ {[%clk 0:00:37]}  Kc8 {[%clk 0:01:15]} 35. Qd2 {[%clk 0:00:36]}  Qa3 {[%clk 0:01:12]} 36. Be4 {[%clk 0:00:34]}  c6 {[%clk 0:01:11]} 37. Ng7 {[%clk 0:00:32]}  Rf6 {[%clk 0:01:08]} 38. Ne8 {[%clk 0:00:32]}  Rf8 {[%clk 0:01:06]} 39. Nd6+ {[%clk 0:00:32]}  Kc7 {[%clk 0:01:06]} 40. Nc4 {[%clk 0:00:31]}  Qa6 {[%clk 0:01:04]} 41. Qh6 {[%clk 0:00:31]}  Qxa2 {[%clk 0:01:02]} 42. Qxe6 {[%clk 0:00:24]}  Qf2+ {[%clk 0:01:01]} 0-1


[Site "https://www.chess.com"]

[Event "Titled Tuesday Blitz January 03 Early 2023"]
[White "Valle Maytin, Luis Enrique"]
[Black "Cnejev, Vladimir-Alexandru"]
[WhiteFideId "3503666"]
[BlackFideId "1260898"]
[WhiteElo "2241"]
[BlackElo "2374"]
[Result "1-0"]
[Round "07"]
[TimeControl "180+2"]
[Date "2023.01.03"]
[WhiteClock "0:00:37"]
[BlackClock "0:00:02"]

1. e4 {[%clk 0:03:00]}  e5 {[%clk 0:02:57]} 2. Nf3 {[%clk 0:03:00]}  Nc6 {[%clk 0:02:57]} 3. Bb5 {[%clk 0:02:56]}  a6 {[%clk 0:02:57]} 4. Ba4 {[%clk 0:02:56]}  b5 {[%clk 0:02:56]} 5. Bb3 {[%clk 0:02:56]}  Bb7 {[%clk 0:02:57]} 6. c3 {[%clk 0:02:56]}  Be7 {[%clk 0:02:57]} 7. O-O {[%clk 0:02:55]}  Nf6 {[%clk 0:02:57]} 8. Re1 {[%clk 0:02:55]}  O-O {[%clk 0:02:57]} 9. d4 {[%clk 0:02:55]}  d6 {[%clk 0:02:57]} 10. a4 {[%clk 0:02:54]}  h6 {[%clk 0:02:57]} 11. Nbd2 {[%clk 0:02:51]}  Re8 {[%clk 0:02:57]} 12. Nf1 {[%clk 0:02:50]}  Bf8 {[%clk 0:02:57]} 13. Ng3 {[%clk 0:02:50]}  exd4 {[%clk 0:02:54]} 14. cxd4 {[%clk 0:02:50]}  Nb4 {[%clk 0:02:54]} 15. e5 {[%clk 0:02:27]}  dxe5 {[%clk 0:02:54]} 16. Nxe5 {[%clk 0:02:26]}  Nbd5 {[%clk 0:01:53]} 17. Be3 {[%clk 0:02:17]}  c5 {[%clk 0:01:52]} 18. axb5 {[%clk 0:02:10]}  axb5 {[%clk 0:01:51]} 19. Bc2 {[%clk 0:02:06]}  Rxa1 {[%clk 0:01:48]} 20. Qxa1 {[%clk 0:02:05]}  cxd4 {[%clk 0:01:49]} 21. Bxd4 {[%clk 0:02:02]}  Nb4 {[%clk 0:01:49]} 22. Bb3 {[%clk 0:01:59]}  Qxd4 {[%clk 0:01:48]} 23. Bxf7+ {[%clk 0:01:59]}  Kh7 {[%clk 0:01:42]} 24. Bxe8 {[%clk 0:01:49]}  Nxe8 {[%clk 0:01:28]} 25. Qb1+ {[%clk 0:01:49]}  Kg8 {[%clk 0:01:26]} 26. Qg6 {[%clk 0:01:45]}  Nd6 {[%clk 0:01:02]} 27. Nf5 {[%clk 0:01:38]}  Be4 {[%clk 0:00:17]} 28. Nxh6+ {[%clk 0:01:31]}  Kh8 {[%clk 0:00:17]} 29. Nef7+ {[%clk 0:01:32]}  Nxf7 {[%clk 0:00:16]} 30. Nxf7+ {[%clk 0:01:32]}  Kg8 {[%clk 0:00:16]} 31. Qe6 {[%clk 0:01:32]}  Bd5 {[%clk 0:00:11]} 32. Nh6+ {[%clk 0:01:28]}  Kh8 {[%clk 0:00:07]} 33. Qf5 {[%clk 0:01:24]}  Qf6 {[%clk 0:00:03]} 34. Re8 {[%clk 0:00:55]}  Qxf5 {[%clk 0:00:04]} 35. Nxf5 {[%clk 0:00:55]}  Kg8 {[%clk 0:00:04]} 36. Nd6 {[%clk 0:00:49]}  Bc6 {[%clk 0:00:02]} 37. Rb8 {[%clk 0:00:44]}  Na6 {[%clk 0:00:01]} 38. Rb6 {[%clk 0:00:41]}  Bxd6 {[%clk 0:00:01]} 39. Rxa6 {[%clk 0:00:37]}  Be5 {[%clk 0:00:01]} 40. Rxc6 {[%clk 0:00:37]}  Bxb2 {[%clk 0:00:02]} 41. Rb6 {[%clk 0:00:37]}  Bf6 {[%clk 0:00:02]} 42. Rxb5 {[%clk 0:00:37]} 1-0


[Site "https://www.chess.com"]

[Event "Titled Tuesday Blitz January 03 Early 2023"]
[White "Le Ruyet, Leopold"]
[Black "Christie, Joshua"]
[WhiteFideId "645923"]
[BlackFideId "7402074"]
[WhiteElo "2245"]
[BlackElo "2294"]
[Result "0-1"]
[Round "07"]
[TimeControl "180+2"]
[Date "2023.01.03"]
[WhiteClock "0:00:10"]
[BlackClock "0:00:10"]

1. e4 {[%clk 0:03:00]}  e6 {[%clk 0:02:58]} 2. d4 {[%clk 0:03:00]}  d5 {[%clk 0:02:59]} 3. e5 {[%clk 0:03:00]}  c5 {[%clk 0:02:59]} 4. c3 {[%clk 0:03:01]}  Qb6 {[%clk 0:03:00]} 5. Nf3 {[%clk 0:03:01]}  Nc6 {[%clk 0:03:00]} 6. Bd3 {[%clk 0:03:01]}  Bd7 {[%clk 0:03:01]} 7. O-O {[%clk 0:03:01]}  cxd4 {[%clk 0:03:02]} 8. Nbd2 {[%clk 0:02:56]}  dxc3 {[%clk 0:02:43]} 9. bxc3 {[%clk 0:02:57]}  Nge7 {[%clk 0:02:43]} 10. Rb1 {[%clk 0:02:56]}  Qc7 {[%clk 0:02:43]} 11. Re1 {[%clk 0:02:51]}  Ng6 {[%clk 0:02:43]} 12. c4 {[%clk 0:02:47]}  Ncxe5 {[%clk 0:02:36]} 13. Bf1 {[%clk 0:02:36]}  Nxc4 {[%clk 0:02:23]} 14. Nxc4 {[%clk 0:02:33]}  dxc4 {[%clk 0:02:23]} 15. Bb2 {[%clk 0:02:23]}  Rd8 {[%clk 0:02:12]} 16. Qc2 {[%clk 0:02:21]}  b5 {[%clk 0:02:10]} 17. a4 {[%clk 0:02:16]}  a6 {[%clk 0:02:10]} 18. axb5 {[%clk 0:02:16]}  axb5 {[%clk 0:02:10]} 19. Ra1 {[%clk 0:02:14]}  Bb4 {[%clk 0:02:09]} 20. Bxg7 {[%clk 0:02:11]}  Bxe1 {[%clk 0:02:03]} 21. Rxe1 {[%clk 0:02:06]}  Rg8 {[%clk 0:01:56]} 22. Bf6 {[%clk 0:02:06]}  Rc8 {[%clk 0:01:56]} 23. Ng5 {[%clk 0:02:00]}  h6 {[%clk 0:01:38]} 24. Nh7 {[%clk 0:01:44]}  Bc6 {[%clk 0:01:17]} 25. Kh1 {[%clk 0:01:24]}  Ne7 {[%clk 0:00:49]} 26. Bh4 {[%clk 0:01:14]}  Nd5 {[%clk 0:00:49]} 27. Qd1 {[%clk 0:01:03]}  Qf4 {[%clk 0:00:44]} 28. Bg3 {[%clk 0:01:02]}  Qg4 {[%clk 0:00:40]} 29. Qb1 {[%clk 0:00:53]}  Qg6 {[%clk 0:00:38]} 30. Qa2 {[%clk 0:00:43]}  Qxh7 {[%clk 0:00:33]} 31. Qa6 {[%clk 0:00:43]}  Bd7 {[%clk 0:00:33]} 32. Qd6 {[%clk 0:00:40]}  Qf5 {[%clk 0:00:28]} 33. Be2 {[%clk 0:00:40]}  Rc6 {[%clk 0:00:24]} 34. Qb8+ {[%clk 0:00:39]}  Rc8 {[%clk 0:00:24]} 35. Qd6 {[%clk 0:00:39]}  c3 {[%clk 0:00:25]} 36. Bf3 {[%clk 0:00:25]}  c2 {[%clk 0:00:18]} 37. Rc1 {[%clk 0:00:22]}  Qg5 {[%clk 0:00:15]} 38. Qa3 {[%clk 0:00:22]}  b4 {[%clk 0:00:14]} 39. Qb2 {[%clk 0:00:22]}  b3 {[%clk 0:00:15]} 40. Be5 {[%clk 0:00:19]}  Bc6 {[%clk 0:00:11]} 41. Re1 {[%clk 0:00:16]}  Nf4 {[%clk 0:00:10]} 42. Bxc6+ {[%clk 0:00:15]}  Rxc6 {[%clk 0:00:11]} 43. g3 {[%clk 0:00:15]}  Nd5 {[%clk 0:00:09]} 44. Qa3 {[%clk 0:00:14]}  c1=Q {[%clk 0:00:09]} 45. Qa8+ {[%clk 0:00:10]}  Rc8 {[%clk 0:00:09]} 46. Qa4+ {[%clk 0:00:10]}  Qc6 {[%clk 0:00:10]} 0-1


[Site "https://www.chess.com"]

[Event "Titled Tuesday Blitz January 03 Early 2023"]
[White "Ljukin, Sergei"]
[Black "Martinez Ramirez, Lennis"]
[WhiteFideId "14102200"]
[BlackFideId "3509079"]
[WhiteElo "2362"]
[BlackElo "2426"]
[Result "1-0"]
[Round "07"]
[TimeControl "180+2"]
[Date "2023.01.03"]
[WhiteClock "0:01:57"]
[BlackClock "0:01:51"]

1. e4 {[%clk 0:02:47]}  c5 {[%clk 0:02:58]} 2. Nf3 {[%clk 0:02:47]}  d6 {[%clk 0:02:59]} 3. d4 {[%clk 0:02:47]}  cxd4 {[%clk 0:03:00]} 4. Nxd4 {[%clk 0:02:47]}  Nf6 {[%clk 0:03:01]} 5. Nc3 {[%clk 0:02:48]}  a6 {[%clk 0:03:01]} 6. Bg5 {[%clk 0:02:48]}  e6 {[%clk 0:02:52]} 7. f4 {[%clk 0:02:48]}  Be7 {[%clk 0:02:50]} 8. Qf3 {[%clk 0:02:45]}  Nbd7 {[%clk 0:02:44]} 9. O-O-O {[%clk 0:02:45]}  Qc7 {[%clk 0:02:42]} 10. g4 {[%clk 0:02:45]}  b5 {[%clk 0:02:32]} 11. Bxf6 {[%clk 0:02:45]}  Bxf6 {[%clk 0:02:28]} 12. Bxb5 {[%clk 0:02:40]}  axb5 {[%clk 0:02:20]} 13. Ndxb5 {[%clk 0:02:40]}  Qb8 {[%clk 0:02:19]} 14. Nxd6+ {[%clk 0:02:38]}  Kf8 {[%clk 0:02:16]} 15. e5 {[%clk 0:02:35]}  Be7 {[%clk 0:02:15]} 16. Nxc8 {[%clk 0:02:30]}  Qxc8 {[%clk 0:02:14]} 17. Rxd7 {[%clk 0:02:27]}  Bb4 {[%clk 0:02:09]} 18. Rhd1 {[%clk 0:02:01]}  h6 {[%clk 0:02:04]} 19. Qxa8 {[%clk 0:01:57]}  Qxa8 {[%clk 0:01:50]} 20. Rd8+ {[%clk 0:01:57]}  Ke7 {[%clk 0:01:51]} 21. R1d7# {[%clk 0:01:57]} 1-0


[Site "https://www.chess.com"]

[Event "Titled Tuesday Blitz January 03 Early 2023"]
[White "Lorenzo De La Riva, Lazaro"]
[Black "MKlose11"]
[WhiteFideId "2268809"]
[WhiteElo "2404"]
[BlackElo "2554"]
[Result "0-1"]
[Round "07"]
[TimeControl "180+2"]
[Date "2023.01.03"]
[WhiteClock "0:02:01"]
[BlackClock "0:02:19"]

1. Nf3 {[%clk 0:02:56]}  Nf6 {[%clk 0:02:56]} 2. d3 {[%clk 0:02:56]}  d5 {[%clk 0:02:52]} 3. c3 {[%clk 0:02:56]}  c5 {[%clk 0:02:52]} 4. g3 {[%clk 0:02:55]}  h5 {[%clk 0:02:50]} 5. Bg2 {[%clk 0:02:54]}  Bg4 {[%clk 0:02:50]} 6. h3 {[%clk 0:02:54]}  Bd7 {[%clk 0:02:48]} 7. O-O {[%clk 0:02:49]}  Qc8 {[%clk 0:02:49]} 8. Kh2 {[%clk 0:02:36]}  Nc6 {[%clk 0:02:49]} 9. Nbd2 {[%clk 0:02:33]}  h4 {[%clk 0:02:43]} 10. g4 {[%clk 0:02:31]}  Bxg4 {[%clk 0:02:29]} 11. hxg4 {[%clk 0:02:21]}  Nxg4+ {[%clk 0:02:30]} 12. Kg1 {[%clk 0:02:11]}  h3 {[%clk 0:02:28]} 13. Bh1 {[%clk 0:02:03]}  h2+ {[%clk 0:02:23]} 14. Kg2 {[%clk 0:02:01]}  Nge5 {[%clk 0:02:19]} 0-1


[Site "https://www.chess.com"]

[Event "Titled Tuesday Blitz January 03 Early 2023"]
[White "Ovezdurdyyeva, Jemal"]
[Black "Melian, Juan Sebastian"]
[WhiteFideId "14001888"]
[BlackFideId "3706575"]
[WhiteElo "2078"]
[BlackElo "2293"]
[Result "0-1"]
[Round "07"]
[TimeControl "180+2"]
[Date "2023.01.03"]
[WhiteClock "0:01:08"]
[BlackClock "0:00:59"]

1. e4 {[%clk 0:03:00]}  c5 {[%clk 0:02:46]} 2. Nf3 {[%clk 0:03:00]}  e6 {[%clk 0:02:46]} 3. c3 {[%clk 0:02:59]}  Nf6 {[%clk 0:02:40]} 4. Bd3 {[%clk 0:02:58]}  c4 {[%clk 0:02:34]} 5. Bc2 {[%clk 0:02:52]}  d6 {[%clk 0:02:32]} 6. O-O {[%clk 0:02:51]}  Be7 {[%clk 0:02:28]} 7. Qe2 {[%clk 0:02:51]}  Qc7 {[%clk 0:02:26]} 8. Na3 {[%clk 0:02:48]}  b6 {[%clk 0:02:02]} 9. Nxc4 {[%clk 0:02:36]}  Ba6 {[%clk 0:01:59]} 10. d3 {[%clk 0:02:36]}  Nbd7 {[%clk 0:01:49]} 11. Bf4 {[%clk 0:02:26]}  e5 {[%clk 0:01:41]} 12. Bg5 {[%clk 0:02:15]}  Nc5 {[%clk 0:01:37]} 13. Nfd2 {[%clk 0:01:47]}  O-O {[%clk 0:01:16]} 14. b4 {[%clk 0:01:40]}  Ne6 {[%clk 0:01:15]} 15. a4 {[%clk 0:01:39]}  Nxg5 {[%clk 0:01:15]} 16. b5 {[%clk 0:01:25]}  Bc8 {[%clk 0:01:11]} 17. f4 {[%clk 0:01:24]}  exf4 {[%clk 0:01:10]} 18. Rxf4 {[%clk 0:01:25]}  Ne6 {[%clk 0:01:09]} 19. Rf3 {[%clk 0:01:22]}  d5 {[%clk 0:01:09]} 20. exd5 {[%clk 0:01:20]}  Nxd5 {[%clk 0:01:09]} 21. Ne4 {[%clk 0:01:09]}  Bb7 {[%clk 0:01:04]} 22. Rh3 {[%clk 0:01:08]}  Ndf4 {[%clk 0:00:59]} 0-1


[Site "https://www.chess.com"]